bitfinex-derivatives/quotes_BTCF0:USTF0_20241008
["timestamp","ask_amount","ask_price","bid_price","bid_amount"]
[1728400486411,0.002,62755.0,62754.0,0.102704]
[1728400489121,0.782,62755.0,62753.0,0.2798]
[1728400489323,0.782,62755.0,62733.0,0.09449071]
[1728400489324,0.59887104,62754.0,62730.0,0.1022]
[1728400489630,0.079733,62732.0,62730.0,0.1022]
[1728400489928,0.079716,62745.0,62735.0,0.079727]
[1728400490129,0.079727,62736.0,62735.0,0.079727]
[1728400491124,0.079727,62736.0,62735.0,0.088727]
[1728400491327,0.079727,62736.0,62735.0,0.102727]
[1728400491622,0.080727,62736.0,62735.0,0.102727]
[1728400492228,0.001,62736.0,62735.0,0.102727]
[1728400492523,0.080727,62736.0,62735.0,0.102727]
[1728400492820,0.080727,62736.0,62735.0,0.093727]
[1728400492821,0.081727,62736.0,62735.0,0.093727]
[1728400498120,0.002,62736.0,62735.0,0.273727]
[1728400499628,0.081727,62736.0,62735.0,0.273727]
[1728400499945,0.079734,62730.0,62729.0,0.00239038]
[1728400500122,0.259734,62730.0,62729.0,0.00239038]
[1728400500724,0.5408,62730.0,62722.0,0.0509]
[1728400501017,0.079748,62719.0,62718.0,0.3608]
[1728400501217,0.259748,62719.0,62718.0,0.3608]
[1728400501627,0.079765,62708.0,62707.0,0.079763]
[1728400501828,0.079765,62706.0,62705.0,0.0509]
[1728400502130,0.18,62708.0,62704.0,0.3608]
[1728400502131,0.079766,62705.0,62704.0,0.3608]
[1728400503336,0.080766,62705.0,62704.0,0.3608]
[1728400503537,0.002,62705.0,62704.0,0.3608]
[1728400503729,0.002,62705.0,62704.0,0.440567]
[1728400504237,0.079756,62713.0,62712.0,0.079757]
[1728400504429,0.3608,62715.0,62714.0,0.079754]
[1728400504833,0.18,62719.0,62707.0,0.18]
[1728400504834,0.19758274,62719.0,62713.0,0.3608]
[1728400505029,0.079753,62716.0,62715.0,0.079751]
[1728400505535,0.260624,62723.0,62713.0,0.3608]
[1728400505741,0.080624,62723.0,62721.0,0.440546]
[1728400506034,0.079744,62723.0,62721.0,0.440546]
[1728400506528,0.18,62726.0,62721.0,0.440546]
[1728400506732,0.259739,62726.0,62721.0,0.440546]
[1728400506934,0.079742,62724.0,62721.0,0.440546]
[1728400507335,0.079742,62724.0,62721.0,0.3608]
[1728400507534,0.259744,62722.0,62721.0,0.002]
[1728400509136,0.079754,62714.0,62713.0,0.3608]
[1728400509336,0.079761,62711.0,62710.0,0.07976]
[1728400509536,0.079761,62709.0,62708.0,0.0539]
[1728400509834,0.079762,62708.0,62707.0,0.3608]
[1728400510537,0.079762,62709.0,62708.0,0.079762]
[1728400510737,0.001,62709.0,62708.0,0.079762]
[1728400510932,0.002,62709.0,62708.0,0.080762]
[1728400512034,0.079749,62719.0,62708.0,0.001]
[1728400512238,0.079732,62732.0,62730.0,0.079733]
[1728400512436,0.19769581,62733.0,62726.0,0.079739]
[1728400512640,0.19769581,62733.0,62725.0,0.3608]
[1728400512641,0.079735,62730.0,62729.0,0.079735]
[1728400512940,0.079735,62729.0,62716.0,0.36172]
[1728400513141,0.07973,62734.0,62718.0,0.079749]
[1728400513142,0.18,62719.0,62718.0,0.079749]
[1728400513842,0.18,62723.0,62722.0,0.079744]
[1728400515143,0.18,62723.0,62722.0,0.440544]
[1728400515838,0.18,62723.0,62716.0,0.46018006]
[1728400515839,0.079748,62720.0,62719.0,0.079747]
[1728400516141,0.079751,62717.0,62716.0,0.001]
[1728400516444,0.558111,62717.0,62716.0,0.001]
[1728400516635,0.558111,62717.0,62712.0,0.00239083]
[1728400516636,1.158111,62717.0,62712.0,0.00239083]
[1728400516837,0.259756,62713.0,62712.0,0.00239083]
[1728400517751,0.5408,62713.0,62692.0,0.04724535]
[1728400518038,0.5408,62713.0,62694.0,0.18]
[1728400518039,0.18,62705.0,62694.0,0.18]
[1728400518237,0.079767,62704.0,62703.0,0.079767]
[1728400518737,0.079771,62702.0,62701.0,0.07977]
[1728400519637,0.079772,62701.0,62699.0,0.3608]
[1728400519830,0.001,62702.0,62699.0,0.3608]
[1728400520033,0.079772,62700.0,62699.0,0.3608]
[1728400520741,0.079772,62700.0,62699.0,0.442574]
[1728400520934,0.079772,62700.0,62699.0,0.002]
[1728400520935,0.620572,62700.0,62699.0,0.002]
[1728400521638,0.621572,62700.0,62699.0,0.002]
[1728400522241,0.07978,62694.0,62693.0,0.3608]
[1728400522452,0.079782,62692.0,62691.0,0.00239165]
[1728400523736,0.080782,62692.0,62691.0,0.00239165]
[1728400524239,0.081782,62692.0,62691.0,0.00239165]
[1728400524438,0.442582,62692.0,62691.0,0.00239165]
[1728400524646,0.442582,62692.0,62680.0,0.3608]
[1728400524647,0.079796,62681.0,62680.0,0.3608]
[1728400525030,0.03987842,62681.0,62680.0,0.3608]
[1728400525843,0.04087842,62681.0,62680.0,0.3608]
[1728400527446,0.04187842,62681.0,62680.0,0.3608]
[1728400529538,0.22187842,62681.0,62680.0,0.3608]
[1728400531040,0.04187842,62681.0,62680.0,0.3608]
[1728400532647,0.04187842,62681.0,62680.0,0.440598]
[1728400533150,0.07979,62686.0,62685.0,0.079791]
[1728400534154,0.079777,62697.0,62689.0,0.079785]
[1728400534155,0.079786,62690.0,62689.0,0.079785]
[1728400534838,0.079782,62693.0,62692.0,0.07978]
[1728400535038,0.079772,62701.0,62700.0,0.07977]
[1728400535240,0.079768,62704.0,62703.0,0.079768]
[1728400535935,0.079768,62704.0,62700.0,0.130871]
[1728400535936,0.079771,62701.0,62700.0,0.130871]
[1728400536736,0.081771,62701.0,62700.0,0.130871]
[1728400538553,0.079771,62701.0,62700.0,0.130871]
[1728400539054,0.079772,62700.0,62699.0,0.3608]
[1728400539259,0.18,62701.0,62700.0,0.001]
[1728400539260,0.259771,62701.0,62700.0,0.001]
[1728400540253,0.259771,62701.0,62699.0,0.001]
[1728400540445,0.259772,62700.0,62699.0,0.001]
[1728400541053,0.079777,62696.0,62695.0,0.440579]
[1728400541755,0.18,62700.0,62695.0,0.440579]
[1728400541939,0.079768,62703.0,62695.0,0.3608]
[1728400542245,0.079768,62703.0,62697.0,0.079775]
[1728400542246,0.079777,62698.0,62697.0,0.079775]
[1728400543641,0.079777,62698.0,62697.0,0.080775]
[1728400543848,1.44028,62698.0,62687.0,0.00239269]
[1728400544042,0.079788,62688.0,62687.0,0.00239269]
[1728400544461,0.079788,62688.0,62687.0,0.08218169]
[1728400544844,0.1005,62697.0,62687.0,0.00239269]
[1728400545055,0.079785,62691.0,62690.0,0.079784]
[1728400545359,0.079785,62691.0,62690.0,0.440584]
[1728400545743,0.079785,62691.0,62690.0,0.3608]
[1728400546350,0.080785,62691.0,62690.0,0.3608]
[1728400546549,0.080785,62691.0,62690.0,0.440585]
[1728400547148,0.081785,62691.0,62690.0,0.440585]
[1728400548248,0.081785,62691.0,62690.0,0.3608]
[1728400549447,0.081785,62691.0,62690.0,0.440585]
[1728400549761,0.081785,62691.0,62690.0,0.45826655]
[1728400550258,0.081785,62691.0,62690.0,0.37848155]
[1728400551057,0.081785,62691.0,62690.0,0.3608]
[1728400551453,0.081785,62691.0,62687.0,0.00239269]
[1728400551649,0.259788,62688.0,62687.0,0.00239269]
[1728400552155,0.259788,62688.0,62687.0,0.08218169]
[1728400552355,0.079788,62688.0,62687.0,0.08218169]
[1728400553061,0.080788,62688.0,62687.0,0.08218169]
[1728400553458,0.081788,62688.0,62687.0,0.08218169]
[1728400554754,0.081788,62688.0,62687.0,0.00239269]
[1728400555864,0.09887359,62688.0,62687.0,0.00239269]
[1728400556061,0.081788,62688.0,62687.0,0.00239269]
[1728400560160,0.081788,62688.0,62683.0,0.441434]
[1728400560161,1.340348,62688.0,62683.0,0.00084]
[1728400560357,0.079799,62680.0,62676.0,0.3608]
[1728400560663,0.3608,62686.0,62676.0,0.440599]
[1728400560664,0.079803,62677.0,62676.0,0.440599]
[1728400561162,0.18,62685.0,62676.0,0.3608]
[1728400561356,0.079795,62683.0,62682.0,0.079793]
[1728400561555,0.079795,62683.0,62677.0,0.0509]
[1728400561756,0.0798,62680.0,62679.0,0.079798]
[1728400562060,0.2598,62680.0,62679.0,0.079798]
[1728400562457,0.079802,62677.0,62676.0,0.3608]
[1728400562659,0.079802,62677.0,62676.0,0.440603]
[1728400563361,0.079798,62680.0,62679.0,0.079799]
[1728400563666,0.081798,62680.0,62679.0,0.079799]
[1728400563964,0.079802,62677.0,62676.0,0.017899]
[1728400564174,0.261798,62680.0,62670.0,0.0518]
[1728400564175,0.079809,62671.0,62670.0,0.0518]
[1728400564361,0.079806,62674.0,62673.0,0.079805]
[1728400565357,0.079809,62671.0,62670.0,0.1495125]
[1728400565757,0.079806,62674.0,62673.0,0.079805]
[1728400565973,0.080806,62674.0,62673.0,0.079805]
[1728400566462,0.079809,62671.0,62670.0,0.1495115]
[1728400566664,0.080809,62671.0,62670.0,0.1495115]
[1728400567074,0.001,62671.0,62670.0,0.1495115]
[1728400567562,0.080809,62671.0,62670.0,0.1495115]
[1728400568360,0.080806,62674.0,62673.0,0.079807]
[1728400568563,0.079768,62704.0,62681.0,0.079795]
[1728400568564,0.4102,62686.0,62681.0,0.079795]
[1728400568766,0.079794,62684.0,62683.0,0.079793]
[1728400569766,0.3608,62686.0,62681.0,0.3608]
[1728400569961,0.00239397,62687.0,62686.0,0.07979]
[1728400571261,0.08218297,62687.0,62686.0,0.07979]
[1728400572170,0.08318297,62687.0,62686.0,0.07979]
[1728400572869,0.08418297,62687.0,62686.0,0.08179]
[1728400573174,0.00439397,62687.0,62686.0,0.08179]
[1728400573369,0.002,62687.0,62686.0,0.08179]
[1728400574173,0.079776,62698.0,62686.0,0.08179]
[1728400574174,0.079758,62712.0,62686.0,1.26056]
[1728400574370,0.079768,62703.0,62702.0,0.3608]
[1728400575070,0.079783,62693.0,62689.0,0.36319236]
[1728400575275,0.259785,62690.0,62689.0,0.44297836]
[1728400575571,0.18,62697.0,62689.0,0.36319236]
[1728400575769,0.259776,62697.0,62696.0,0.3608]
[1728400576672,0.18,62697.0,62693.0,0.079781]
[1728400576868,0.079777,62696.0,62695.0,0.3608]
[1728400577266,0.079777,62696.0,62695.0,0.440579]
[1728400578170,0.079777,62696.0,62695.0,0.3608]
[1728400578872,0.079777,62696.0,62695.0,0.440579]
[1728400579674,0.080777,62696.0,62695.0,0.440579]
[1728400579867,0.083777,62696.0,62695.0,0.440579]
[1728400580268,0.083777,62696.0,62695.0,0.3608]
[1728400580471,0.082777,62696.0,62695.0,0.3608]
[1728400580779,0.082777,62696.0,62695.0,0.442579]
[1728400580974,0.082777,62696.0,62695.0,0.3628]
[1728400581279,0.079777,62696.0,62695.0,0.3628]
[1728400582065,0.079777,62696.0,62695.0,0.3608]
[1728400582270,0.079777,62696.0,62695.0,0.3628]
[1728400583381,0.182177,62696.0,62695.0,0.002]
[1728400583565,0.182177,62696.0,62671.0,0.04724535]
[1728400583566,0.079785,62690.0,62671.0,0.04724535]
[1728400583766,0.18,62672.0,62670.0,0.3608]
[1728400583973,0.079809,62671.0,62670.0,0.44061]
[1728400584176,0.079809,62671.0,62670.0,0.3608]
[1728400584881,0.18,62676.0,62670.0,0.37800192]
[1728400585079,0.079805,62675.0,62674.0,0.079805]
[1728400585282,0.18,62676.0,62670.0,0.37800192]
[1728400585580,0.079806,62674.0,62673.0,0.079807]
[1728400585975,0.079806,62674.0,62670.0,0.37800192]
[1728400585976,0.259803,62676.0,62674.0,0.079805]
[1728400586282,0.18,62676.0,62670.0,0.37800192]
[1728400586485,0.079807,62674.0,62673.0,0.079807]
[1728400587181,0.182,62676.0,62670.0,0.37800192]
[1728400587384,0.079809,62671.0,62670.0,0.37800192]
[1728400588886,0.080809,62671.0,62670.0,0.3608]
[1728400589973,0.081809,62671.0,62670.0,0.3608]
[1728400591883,0.081809,62671.0,62663.0,0.3616]
[1728400592094,0.079827,62657.0,62656.0,0.440628]
[1728400592380,0.259827,62657.0,62656.0,0.3608]
[1728400592990,0.079844,62644.0,62641.0,0.079847]
[1728400593290,0.079844,62644.0,62639.0,0.079849]
[1728400593471,1.1408,62644.0,62633.0,0.3608]
[1728400593675,0.07986,62631.0,62628.0,0.3608]
[1728400593976,0.07986,62631.0,62630.0,0.079861]
[1728400594176,0.07986,62631.0,62628.0,0.3608]
[1728400594177,0.079859,62632.0,62631.0,0.07986]
[1728400594773,0.18,62633.0,62632.0,0.079859]
[1728400594975,0.18,62644.0,62631.0,0.18]
[1728400595270,0.18,62648.0,62645.0,0.079842]
[1728400595474,0.06438629,62649.0,62639.0,0.18]
[1728400595678,0.259834,62652.0,62650.0,0.079836]
[1728400595883,0.00239522,62657.0,62656.0,0.079828]
[1728400598085,0.00639522,62657.0,62656.0,0.079828]
[1728400598783,0.00239522,62657.0,62656.0,0.079828]
[1728400600595,0.00239522,62657.0,62656.0,0.131728]
[1728400602788,0.3608,62665.0,62664.0,0.079818]
[1728400602992,0.079811,62670.0,62663.0,0.3608]
[1728400603182,0.283,62678.0,62672.0,0.079808]
[1728400603183,0.079807,62673.0,62672.0,0.079808]
[1728400603495,0.079809,62672.0,62663.0,0.3608]
[1728400603682,0.0646402,62677.0,62666.0,0.18]
[1728400603882,0.079803,62676.0,62675.0,0.079804]
[1728400604083,0.0177402,62677.0,62672.0,0.079808]
[1728400604382,0.079805,62674.0,62672.0,0.079808]
[1728400605296,0.079805,62674.0,62662.0,0.0509]
[1728400605297,0.079816,62666.0,62657.0,0.079826]
[1728400605482,0.18,62657.0,62656.0,0.440627]
[1728400605791,0.079827,62657.0,62656.0,0.079827]
[1728400606380,0.079827,62657.0,62652.0,0.0494]
[1728400606381,0.079831,62654.0,62652.0,0.129233]
[1728400606581,0.079831,62654.0,62653.0,0.079832]
[1728400606787,0.079825,62659.0,62657.0,0.079827]
[1728400606992,0.079825,62659.0,62658.0,0.079826]
[1728400607496,0.3618,62666.0,62657.0,0.18]
[1728400607693,0.3618,62666.0,62656.0,0.3608]
[1728400607694,0.001,62666.0,62665.0,0.259817]
[1728400607992,0.001,62666.0,62665.0,0.440617]
[1728400608191,0.079814,62668.0,62665.0,0.3608]
[1728400608389,0.079809,62672.0,62669.0,0.079811]
[1728400608601,0.079809,62672.0,62670.0,0.079809]
[1728400608889,0.079809,62672.0,62666.0,0.0503]
[1728400608890,0.079805,62675.0,62673.0,0.079807]
[1728400609288,0.01723769,62679.0,62671.0,0.3608]
[1728400609487,0.079803,62677.0,62675.0,0.079803]
[1728400609693,0.079803,62677.0,62676.0,0.079803]
[1728400610294,0.65960203,62681.0,62666.0,0.1507]
[1728400610501,0.079805,62675.0,62673.0,0.079806]
[1728400610796,0.079805,62674.0,62673.0,0.079806]
[1728400612993,0.089805,62674.0,62673.0,0.079806]
[1728400613895,0.089805,62674.0,62658.0,0.359825]
[1728400613896,0.079829,62657.0,62656.0,0.079827]
[1728400615997,0.079825,62659.0,62652.0,0.1451]
[1728400616205,0.3608,62668.0,62657.0,0.3608]
[1728400616498,0.07982,62663.0,62661.0,0.079822]
[1728400617302,0.07982,62663.0,62662.0,0.079821]
[1728400617702,0.001,62663.0,62662.0,0.079821]
[1728400617893,0.3608,62682.0,62662.0,1.35876]
[1728400618090,0.440596,62682.0,62668.0,0.3608]
[1728400618296,0.079828,62656.0,62655.0,0.3608]
[1728400618902,0.6408,62662.0,62655.0,0.3608]
[1728400618903,0.36172,62662.0,62655.0,0.3608]
[1728400619096,0.3608,62677.0,62661.0,0.3608]
[1728400619293,0.3608,62677.0,62673.0,0.079804]
[1728400619294,0.079806,62674.0,62673.0,0.079804]
[1728400620208,0.3608,62677.0,62667.0,0.3608]
[1728400620397,0.3608,62686.0,62673.0,0.3608]
[1728400620590,0.3608,62686.0,62676.0,0.079802]
[1728400620591,0.0798,62679.0,62676.0,0.079802]
[1728400620791,0.012,62674.0,62673.0,0.440607]
[1728400621201,0.026,62674.0,62673.0,0.440607]
[1728400621602,0.026,62674.0,62673.0,0.079807]
[1728400621800,0.026,62674.0,62673.0,0.440607]
[1728400622700,0.079803,62676.0,62675.0,0.079804]
[1728400623602,0.012,62674.0,62662.0,0.04724535]
[1728400623807,0.079826,62658.0,62656.0,0.079828]
[1728400624005,0.079826,62658.0,62657.0,0.079827]
[1728400624195,0.3608,62663.0,62659.0,0.079823]
[1728400624596,0.079823,62660.0,62659.0,0.079823]
[1728400625103,0.079819,62664.0,62659.0,0.079824]
[1728400625299,0.07982,62663.0,62659.0,0.079824]
[1728400625502,0.3608,62672.0,62660.0,0.079823]
[1728400625503,0.079821,62662.0,62660.0,0.079823]
[1728400625705,0.079821,62662.0,62656.0,0.04724535]
[1728400625706,0.079814,62668.0,62656.0,0.04724535]
[1728400626011,0.3608,62672.0,62656.0,0.04724535]
[1728400626204,0.079816,62666.0,62663.0,0.079819]
[1728400626404,0.3608,62672.0,62662.0,0.07982]
[1728400626604,0.07981,62671.0,62662.0,0.07982]
[1728400626907,0.079819,62663.0,62662.0,0.07982]
[1728400627405,0.001,62668.0,62659.0,0.079824]
[1728400627406,0.079823,62661.0,62659.0,0.079824]
[1728400627607,0.079827,62657.0,62656.0,0.002]
[1728400627805,0.079833,62652.0,62651.0,0.0023939]
[1728400628110,0.079844,62644.0,62643.0,0.079844]
[1728400629809,0.080844,62644.0,62643.0,0.081844]
[1728400631216,0.081844,62644.0,62643.0,0.081844]
[1728400631807,0.081844,62644.0,62643.0,0.002]
[1728400632108,0.081844,62644.0,62643.0,0.081845]
[1728400632309,0.002,62644.0,62643.0,0.081845]
[1728400633417,0.002,62644.0,62643.0,0.442645]
[1728400636712,0.081844,62644.0,62643.0,0.442645]
[1728400637522,0.081844,62644.0,62643.0,0.002]
[1728400643623,0.560764,62644.0,62643.0,0.002]
[1728400644723,0.002,62644.0,62643.0,0.081845]
[1728400644926,0.002,62644.0,62643.0,0.166845]
[1728400645120,0.259831,62655.0,62650.0,0.079834]
[1728400645121,0.079835,62651.0,62650.0,0.079834]
[1728400645326,0.079835,62651.0,62643.0,0.166845]
[1728400645327,0.18,62655.0,62643.0,0.166845]
[1728400645625,0.18,62655.0,62653.0,0.079831]
[1728400645626,0.079832,62654.0,62653.0,0.079831]
[1728400646925,0.079837,62651.0,62650.0,0.079834]
[1728400648219,0.080831,62654.0,62653.0,0.080831]
[1728400649123,0.079831,62654.0,62653.0,0.079831]
[1728400649324,0.079835,62651.0,62650.0,0.002]
[1728400649532,0.620635,62651.0,62650.0,0.002]
[1728400649826,0.621635,62651.0,62647.0,0.079839]
[1728400650125,0.079842,62645.0,62644.0,0.124643]
[1728400650330,0.259842,62645.0,62644.0,0.124643]
[1728400650927,0.3618,62651.0,62644.0,0.124643]
[1728400651124,0.079838,62649.0,62648.0,0.079837]
[1728400653124,0.079838,62649.0,62648.0,0.080837]
[1728400653125,0.080838,62649.0,62648.0,0.080837]
[1728400653631,0.081838,62649.0,62648.0,0.080837]
[1728400654436,0.002,62649.0,62648.0,0.080837]
[1728400655433,0.261837,62649.0,62648.0,0.001]
[1728400655734,0.079852,62637.0,62636.0,0.122554]
[1728400656931,0.080852,62637.0,62636.0,0.122554]
[1728400657430,0.080852,62637.0,62635.0,0.3608]
[1728400657431,0.079854,62636.0,62635.0,0.3608]
[1728400658237,0.079858,62633.0,62632.0,0.0427]
[1728400658528,0.259858,62633.0,62632.0,0.0427]
[1728400659125,0.07986,62631.0,62630.0,0.00239477]
[1728400659833,0.0863,62632.0,62619.0,0.08984535]
[1728400659834,0.079874,62620.0,62619.0,0.08984535]
[1728400660138,0.25987,62623.0,62622.0,0.079872]
[1728400660338,0.25987,62623.0,62619.0,0.122475]
[1728400660339,0.079873,62621.0,62619.0,0.122475]
[1728400660524,0.079874,62620.0,62619.0,0.0426]
[1728400661732,0.079874,62620.0,62619.0,0.122475]
[1728400661927,0.079873,62621.0,62619.0,0.0426]
[1728400662130,0.079879,62617.0,62615.0,0.07988]
[1728400662431,0.18,62618.0,62617.0,0.079878]
[1728400662632,0.079877,62618.0,62617.0,0.079878]
[1728400663028,0.079882,62615.0,62614.0,0.079882]
[1728400663541,0.001,62617.0,62616.0,0.079879]
[1728400664039,0.080878,62617.0,62616.0,0.079879]
[1728400664730,0.001,62617.0,62616.0,0.079879]
[1728400665053,0.001,62618.0,62617.0,0.079878]
[1728400665242,0.07987,62624.0,62623.0,0.079868]
[1728400666135,0.19457045,62628.0,62616.0,0.259879]
[1728400666136,0.001,62617.0,62616.0,0.259879]
[1728400666331,0.18,62628.0,62616.0,0.18]
[1728400666537,0.079868,62625.0,62624.0,0.079868]
[1728400669142,0.080868,62625.0,62624.0,0.079868]
[1728400669336,0.081868,62625.0,62624.0,0.082868]
[1728400672333,0.081868,62625.0,62624.0,0.003]
[1728400674346,0.079882,62614.0,62613.0,0.0454]
[1728400674536,0.440682,62614.0,62613.0,0.0454]
[1728400674738,0.082788,62625.0,62613.0,0.2254]
[1728400674739,0.3608,62620.0,62613.0,0.2254]
[1728400675041,0.3608,62620.0,62619.0,0.079875]
[1728400675245,0.440674,62620.0,62619.0,0.079875]
[1728400675935,0.3608,62620.0,62615.0,0.3608]
[1728400676238,0.3608,62620.0,62619.0,0.081875]
[1728400676239,0.441674,62620.0,62619.0,0.081875]
[1728400676438,0.3628,62620.0,62619.0,0.081875]
[1728400676753,0.002,62620.0,62619.0,0.261875]
[1728400677441,0.3608,62636.0,62620.0,0.079874]
[1728400677644,0.079856,62634.0,62632.0,0.079859]
[1728400677937,0.079859,62632.0,62625.0,0.0418]
[1728400678141,0.079859,62632.0,62629.0,0.079862]
[1728400679347,0.079859,62632.0,62630.0,0.079861]
[1728400679738,0.079859,62632.0,62625.0,0.0418]
[1728400679739,0.001,62634.0,62626.0,0.0436]
[1728400680052,0.001,62634.0,62633.0,0.079858]
[1728400680541,0.001,62634.0,62633.0,0.259858]
[1728400680747,0.3608,62643.0,62637.0,0.079852]
[1728400680937,0.440645,62643.0,62637.0,0.259852]
[1728400681138,0.079848,62641.0,62635.0,0.3608]
[1728400681339,0.079848,62641.0,62639.0,0.079849]
[1728400681641,0.079843,62645.0,62644.0,0.079842]
[1728400681834,0.01474918,62646.0,62645.0,0.079842]
[1728400682037,0.440635,62651.0,62650.0,0.079836]
[1728400682238,0.3608,62651.0,62650.0,0.079836]
[1728400683341,0.3708,62651.0,62650.0,0.079836]
[1728400683541,0.450635,62651.0,62650.0,0.079836]
[1728400683746,0.450635,62651.0,62643.0,0.125744]
[1728400683747,0.079844,62644.0,62643.0,0.125744]
[1728400683938,0.079847,62641.0,62640.0,0.121648]
[1728400684143,0.259847,62641.0,62640.0,0.121648]
[1728400684343,0.079854,62636.0,62635.0,0.3608]
[1728400684544,0.259854,62636.0,62635.0,0.3608]
[1728400685845,0.259854,62636.0,62635.0,0.3628]
[1728400685846,0.260854,62636.0,62635.0,0.3628]
[1728400686144,0.263854,62636.0,62635.0,0.3628]
[1728400686341,0.263854,62636.0,62635.0,0.081855]
[1728400686545,0.261854,62636.0,62634.0,0.079856]
[1728400686939,0.002,62636.0,62635.0,0.079855]
[1728400687742,0.3608,62645.0,62644.0,0.079844]
[1728400688438,0.01456375,62650.0,62641.0,0.0423]
[1728400688645,0.36176,62651.0,62650.0,0.079836]
[1728400688841,0.3608,62651.0,62650.0,0.079836]
[1728400689450,0.079836,62650.0,62649.0,0.0423]
[1728400689650,0.080836,62650.0,62649.0,0.0423]
[1728400690060,0.001,62650.0,62649.0,0.122137]
[1728400691144,0.079836,62650.0,62649.0,0.122137]
[1728400691552,0.259836,62650.0,62649.0,0.0423]
[1728400691748,0.079841,62646.0,62645.0,0.3608]
[1728400691954,0.259841,62646.0,62645.0,0.3608]
[1728400692342,0.259841,62646.0,62642.0,0.0428]
[1728400692343,0.079845,62643.0,62642.0,0.0428]
[1728400694141,0.079842,62645.0,62644.0,0.079843]
[1728400694955,0.079842,62645.0,62642.0,0.0438]
[1728400694956,0.3608,62651.0,62642.0,0.2238]
[1728400695151,0.3608,62651.0,62650.0,0.079836]
[1728400696458,0.3628,62651.0,62650.0,0.079836]
[1728400697054,0.002,62651.0,62650.0,0.079836]
[1728400697753,0.079825,62659.0,62648.0,0.0427]
[1728400697959,0.003,62651.0,62648.0,0.0427]
[1728400698753,0.002,62651.0,62648.0,0.0427]
[1728400698962,0.079832,62653.0,62651.0,0.079834]
[1728400699757,0.079832,62653.0,62652.0,0.079833]
[1728400699965,0.079828,62657.0,62655.0,0.079829]
[1728400700166,0.19520864,62660.0,62650.0,0.18]
[1728400700455,0.079828,62657.0,62655.0,0.079828]
[1728400701261,0.3608,62656.0,62655.0,0.079828]
[1728400701556,0.440628,62656.0,62655.0,0.079828]
[1728400701964,0.008,62657.0,62656.0,0.079828]
[1728400702262,0.008,62657.0,62656.0,0.125428]
[1728400702462,0.079818,62664.0,62656.0,0.0456]
[1728400702667,0.079818,62664.0,62663.0,0.079819]
[1728400703562,0.259818,62664.0,62663.0,0.079819]
[1728400704859,0.273818,62664.0,62663.0,0.079819]
[1728400705267,0.014,62664.0,62663.0,0.079819]
[1728400705559,0.028,62664.0,62663.0,0.079819]
[1728400706461,0.208,62664.0,62663.0,0.079819]
[1728400708154,0.028,62664.0,62663.0,0.079819]
[1728400709965,0.019,62664.0,62663.0,0.079819]
[1728400711165,0.012,62664.0,62663.0,0.079819]
[1728400712660,0.079822,62661.0,62660.0,0.3608]
[1728400712865,0.079822,62661.0,62656.0,0.0456]
[1728400712866,0.079826,62658.0,62656.0,0.0456]
[1728400714160,0.079827,62657.0,62656.0,0.0456]
[1728400714462,0.079832,62653.0,62652.0,0.079832]
[1728400715765,0.079832,62653.0,62652.0,0.081832]
[1728400716153,0.079829,62656.0,62655.0,0.079829]
[1728400717165,0.259827,62657.0,62652.0,0.002]
[1728400717365,0.079832,62653.0,62652.0,0.081833]
[1728400718258,0.079832,62653.0,62652.0,0.079833]
[1728400718463,0.001,62656.0,62650.0,0.0175694]
[1728400718761,0.080829,62656.0,62655.0,0.07983]
[1728400718961,0.079833,62653.0,62652.0,0.079832]
[1728400719167,0.079835,62651.0,62650.0,0.08222904]
[1728400719468,0.079828,62656.0,62650.0,0.08222904]
[1728400719469,0.079831,62654.0,62653.0,0.079831]
[1728400721971,0.079831,62655.0,62654.0,0.079829]
[1728400722568,0.07983,62655.0,62654.0,0.079829]
[1728400723272,0.07982,62663.0,62662.0,0.079819]
[1728400724857,0.07982,62663.0,62654.0,0.3616]
[1728400725060,0.07983,62658.0,62657.0,0.079825]
[1728400725363,0.079824,62661.0,62660.0,0.079821]
[1728400726570,0.001,62663.0,62656.0,0.18]
[1728400726766,0.001,62663.0,62662.0,0.079821]
[1728400726972,0.080819,62663.0,62662.0,0.079821]
[1728400728164,0.079819,62663.0,62662.0,0.079821]
[1728400728367,0.081819,62663.0,62662.0,0.079821]
[1728400728768,0.079828,62660.0,62659.0,0.079824]
[1728400730068,0.080828,62660.0,62659.0,0.079824]
[1728400730471,0.001,62660.0,62659.0,0.079824]
[1728400731472,0.080823,62660.0,62659.0,0.079824]
[1728400731676,0.083823,62660.0,62659.0,0.079824]
[1728400732072,0.080823,62660.0,62659.0,0.079824]
[1728400732266,0.083823,62660.0,62659.0,0.079824]
[1728400734284,0.083823,62660.0,62650.0,0.09303939]
[1728400734285,0.079831,62654.0,62650.0,0.08223004]
[1728400734473,0.079835,62651.0,62650.0,0.00239404]
[1728400735775,0.081835,62651.0,62650.0,0.00439404]
[1728400736477,0.080835,62651.0,62650.0,0.00239404]
[1728400736675,0.079835,62651.0,62650.0,0.00239404]
[1728400736879,0.080835,62651.0,62650.0,0.00239404]
[1728400739384,0.080835,62651.0,62642.0,0.079846]
[1728400739385,0.079846,62643.0,62642.0,0.079846]
[1728400739574,0.259846,62643.0,62642.0,0.079846]
[1728400739774,0.259846,62643.0,62641.0,0.4041]
[1728400739979,0.079851,62638.0,62635.0,0.04389468]